[Event "Late-Titled-Tuesday-Blitz-February-27-2024"]
[Site "Chess.com"]
[Date "2024.02.27"]
[Round "2"]
[White "MiguelEduardoGB"]
[Black "venturov"]
[Result "1-0"]
[WhiteElo "2157"]
[BlackElo "2425"]
[TimeControl "180+1"]
[EndTime "14:17:12 PST"]
[Termination "MiguelEduardoGB won by resignation"]

1. Nf3 {[%clk 0:02:57.7]} 1... g6 {[%clk 0:03:00]} 2. g3 {[%clk 0:02:56.8]} 2...
Bg7 {[%clk 0:03:00.1]} 3. Bg2 {[%clk 0:02:57.5]} 3... e5 {[%clk 0:03:00.6]} 4.
O-O {[%clk 0:02:57.6]} 4... Ne7 {[%clk 0:03:00.8]} 5. d3 {[%clk 0:02:57.8]} 5...
O-O {[%clk 0:03:01.1]} 6. Nfd2 {[%clk 0:02:54.8]} 6... d5 {[%clk 0:02:59.7]} 7.
c4 {[%clk 0:02:54.7]} 7... c5 {[%clk 0:02:57.8]} 8. Nc3 {[%clk 0:02:52.9]} 8...
Be6 {[%clk 0:02:57.1]} 9. cxd5 {[%clk 0:02:41.9]} 9... Nxd5 {[%clk 0:02:56.6]}
10. Nde4 {[%clk 0:02:39.9]} 10... Nxc3 {[%clk 0:02:39.9]} 11. bxc3 {[%clk
0:02:35.6]} 11... Bd5 {[%clk 0:02:31.2]} 12. c4 {[%clk 0:02:12.5]} 12... Bc6
{[%clk 0:02:28.3]} 13. Nxc5 {[%clk 0:01:55.3]} 13... Bxg2 {[%clk 0:02:27.3]} 14.
Kxg2 {[%clk 0:01:56.2]} 14... e4 {[%clk 0:02:22.1]} 15. Be3 {[%clk 0:01:49.3]}
15... Bxa1 {[%clk 0:02:18.7]} 16. Qxa1 {[%clk 0:01:50.2]} 16... exd3 {[%clk
0:02:17.7]} 17. Bh6 {[%clk 0:01:34.9]} 17... f6 {[%clk 0:02:07.5]} 18. Ne6
{[%clk 0:01:20.1]} 18... Qe8 {[%clk 0:01:27.4]} 19. Nxf8 {[%clk 0:01:14]} 19...
Qc6+ {[%clk 0:01:23.4]} 20. Kg1 {[%clk 0:00:53.2]} 20... dxe2 {[%clk 0:01:23.3]}
21. Re1 {[%clk 0:00:46.1]} 21... Na6 {[%clk 0:01:18.6]} 22. Qd4 {[%clk
0:00:32.9]} 22... Rxf8 {[%clk 0:01:02]} 23. Bxf8 {[%clk 0:00:32.5]} 23... Kxf8
{[%clk 0:01:02.9]} 24. Qd8+ {[%clk 0:00:32.2]} 24... Kg7 {[%clk 0:01:01.6]} 25.
Rxe2 {[%clk 0:00:31.2]} 25... Qxc4 {[%clk 0:00:40.9]} 26. Re7+ {[%clk
0:00:31.1]} 26... Kh6 {[%clk 0:00:41]} 27. Qd2+ {[%clk 0:00:30.3]} 27... g5
{[%clk 0:00:36.3]} 28. h4 {[%clk 0:00:20.6]} 28... Qc5 {[%clk 0:00:14.2]} 29.
hxg5+ {[%clk 0:00:20.7]} 29... fxg5 {[%clk 0:00:14.3]} 30. Re6+ {[%clk
0:00:20.1]} 30... Kh5 {[%clk 0:00:02.8]} 31. Qe2+ {[%clk 0:00:20.3]} 31... g4
{[%clk 0:00:02.2]} 32. Re5+ {[%clk 0:00:20.5]} 32... Qxe5 {[%clk 0:00:02.5]} 33.
Qxe5+ {[%clk 0:00:21.4]} 33... Kg6 {[%clk 0:00:03.1]} 34. Qe6+ {[%clk
0:00:21.2]} 1-0

[Event "Late-Titled-Tuesday-Blitz-February-27-2024"]
[Site "Chess.com"]
[Date "2024.02.27"]
[Round "2"]
[White "GHANDEEVAM2003"]
[Black "Unkreativ3"]
[Result "1-0"]
[WhiteElo "3045"]
[BlackElo "2623"]
[TimeControl "180+1"]
[EndTime "14:17:15 PST"]
[Termination "GHANDEEVAM2003 won by resignation"]

1. c4 {[%clk 0:02:56.1]} 1... c5 {[%clk 0:02:59.7]} 2. b3 {[%clk 0:02:55.8]}
2... g6 {[%clk 0:02:58.3]} 3. Bb2 {[%clk 0:02:56.4]} 3... Nf6 {[%clk 0:02:58.9]}
4. g3 {[%clk 0:02:57.2]} 4... Bg7 {[%clk 0:02:59.2]} 5. Bg2 {[%clk 0:02:58.1]}
5... O-O {[%clk 0:02:59.7]} 6. Nf3 {[%clk 0:02:58.4]} 6... Nc6 {[%clk
0:02:59.3]} 7. O-O {[%clk 0:02:58.6]} 7... d6 {[%clk 0:02:59.1]} 8. d4 {[%clk
0:02:58.3]} 8... cxd4 {[%clk 0:02:57.9]} 9. Nxd4 {[%clk 0:02:59.2]} 9... Nxd4
{[%clk 0:02:57.2]} 10. Qxd4 {[%clk 0:03:00.1]} 10... Ne8 {[%clk 0:02:57.3]} 11.
Qd2 {[%clk 0:02:59.7]} 11... a6 {[%clk 0:02:55.9]} 12. Nc3 {[%clk 0:02:59.2]}
12... Rb8 {[%clk 0:02:53.5]} 13. Rfd1 {[%clk 0:02:57.7]} 13... Bd7 {[%clk
0:02:48.8]} 14. c5 {[%clk 0:02:54.8]} 14... Bc6 {[%clk 0:02:43.7]} 15. cxd6
{[%clk 0:02:51.8]} 15... Nxd6 {[%clk 0:02:39.8]} 16. Bxc6 {[%clk 0:02:51.8]}
16... bxc6 {[%clk 0:02:40.7]} 17. Na4 {[%clk 0:02:52.3]} 17... Bxb2 {[%clk
0:02:37.7]} 18. Qxb2 {[%clk 0:02:53.2]} 18... Qa5 {[%clk 0:02:32.2]} 19. Qd2
{[%clk 0:02:49.7]} 19... Qh5 {[%clk 0:02:23.4]} 20. Rac1 {[%clk 0:02:47.8]}
20... Rfc8 {[%clk 0:02:18.3]} 21. Rc5 {[%clk 0:02:42.8]} 21... Qh3 {[%clk
0:02:12.7]} 22. Qe3 {[%clk 0:02:32.8]} 22... Qd7 {[%clk 0:01:59.7]} 23. Re5
{[%clk 0:02:30]} 23... Rc7 {[%clk 0:01:39.4]} 24. Nc5 {[%clk 0:02:27.2]} 24...
Qc8 {[%clk 0:01:37.5]} 25. Rxe7 {[%clk 0:02:22.7]} 25... Nf5 {[%clk 0:01:32.5]}
26. Rxc7 {[%clk 0:02:22.8]} 26... Qxc7 {[%clk 0:01:33.4]} 27. Qc3 {[%clk
0:02:21.6]} 27... Rd8 {[%clk 0:01:23.4]} 28. Rxd8+ {[%clk 0:02:14]} 28... Qxd8
{[%clk 0:01:24.2]} 29. e3 {[%clk 0:02:14.9]} 29... Qd1+ {[%clk 0:01:16.3]} 30.
Kg2 {[%clk 0:02:15]} 30... Qg4 {[%clk 0:01:10.3]} 31. a4 {[%clk 0:01:55.2]}
31... Nh4+ {[%clk 0:01:03]} 32. Kf1 {[%clk 0:01:55.7]} 32... Qd1+ {[%clk
0:00:55.2]} 33. Qe1 {[%clk 0:01:55.7]} 33... Qc2 {[%clk 0:00:56.1]} 34. gxh4
{[%clk 0:01:45]} 34... Qxc5 {[%clk 0:00:55.7]} 35. Qd2 {[%clk 0:01:42.1]} 35...
a5 {[%clk 0:00:52.4]} 36. Qd8+ {[%clk 0:01:39.9]} 36... Kg7 {[%clk 0:00:52.3]}
37. Qd4+ {[%clk 0:01:40.5]} 37... Qxd4 {[%clk 0:00:52.7]} 38. exd4 {[%clk
0:01:41.4]} 38... Kf6 {[%clk 0:00:38.8]} 39. Ke2 {[%clk 0:01:41.4]} 39... Ke6
{[%clk 0:00:37.2]} 40. Kd3 {[%clk 0:01:41.5]} 40... Kd5 {[%clk 0:00:36.1]} 41.
Kc3 {[%clk 0:01:42.1]} 41... c5 {[%clk 0:00:32.4]} 42. dxc5 {[%clk 0:01:43]}
42... Kxc5 {[%clk 0:00:33.3]} 43. h5 {[%clk 0:01:36.6]} 43... gxh5 {[%clk
0:00:22.3]} 44. h4 {[%clk 0:01:36.6]} 44... h6 {[%clk 0:00:17.3]} 45. f3 {[%clk
0:01:36.4]} 45... f6 {[%clk 0:00:17]} 46. f4 {[%clk 0:01:36.8]} 46... f5 {[%clk
0:00:17.3]} 47. b4+ {[%clk 0:01:37.5]} 47... axb4+ {[%clk 0:00:15.6]} 48. Kb3
{[%clk 0:01:38.1]} 48... Kd4 {[%clk 0:00:10.3]} 49. Kxb4 {[%clk 0:01:37.1]}
49... Ke4 {[%clk 0:00:10.6]} 50. a5 {[%clk 0:01:38]} 50... Kxf4 {[%clk
0:00:11.5]} 51. a6 {[%clk 0:01:38.9]} 51... Kg3 {[%clk 0:00:11.9]} 52. a7 {[%clk
0:01:39.8]} 52... f4 {[%clk 0:00:12.8]} 53. a8=Q {[%clk 0:01:40.7]} 53... f3
{[%clk 0:00:13.7]} 54. Kc3 {[%clk 0:01:40.1]} 54... Kg4 {[%clk 0:00:09.7]} 55.
Kd2 {[%clk 0:01:38.2]} 55... Kg3 {[%clk 0:00:07]} 56. Ke3 {[%clk 0:01:37.4]}
56... Kxh4 {[%clk 0:00:04.2]} 1-0

[Event "Late-Titled-Tuesday-Blitz-February-27-2024"]
[Site "Chess.com"]
[Date "2024.02.27"]
[Round "2"]
[White "dawid498"]
[Black "SilverSwords13"]
[Result "1-0"]
[WhiteElo "2711"]
[BlackElo "2458"]
[TimeControl "180+1"]
[EndTime "14:17:18 PST"]
[Termination "dawid498 won by resignation"]

1. e4 {[%clk 0:03:00.9]} 1... c5 {[%clk 0:02:58]} 2. Nf3 {[%clk 0:02:59.6]} 2...
e6 {[%clk 0:02:57.1]} 3. d4 {[%clk 0:02:59.7]} 3... cxd4 {[%clk 0:02:58]} 4.
Nxd4 {[%clk 0:03:00.5]} 4... Nc6 {[%clk 0:02:58.3]} 5. Nc3 {[%clk 0:03:00.4]}
5... Qc7 {[%clk 0:02:58.2]} 6. Qd3 {[%clk 0:02:54.8]} 6... Nf6 {[%clk
0:02:49.9]} 7. Ndb5 {[%clk 0:02:41.9]} 7... Qb8 {[%clk 0:02:49.2]} 8. Qg3 {[%clk
0:02:42]} 8... Qxg3 {[%clk 0:02:27.1]} 9. hxg3 {[%clk 0:02:42.9]} 9... Kd8
{[%clk 0:02:25.8]} 10. Bf4 {[%clk 0:02:07.4]} 10... e5 {[%clk 0:01:54]} 11. Bg5
{[%clk 0:02:06.7]} 11... a6 {[%clk 0:01:54.1]} 12. Na3 {[%clk 0:01:36]} 12... b5
{[%clk 0:01:41.6]} 13. Nd5 {[%clk 0:01:35.2]} 13... Be7 {[%clk 0:01:41.6]} 14.
Nxe7 {[%clk 0:01:07.4]} 14... Nxe7 {[%clk 0:01:38.5]} 15. f3 {[%clk 0:01:05.3]}
15... Bb7 {[%clk 0:01:23.2]} 16. c4 {[%clk 0:00:59.8]} 16... b4 {[%clk 0:01:21]}
17. Nc2 {[%clk 0:00:59.2]} 17... a5 {[%clk 0:01:20.6]} 18. O-O-O {[%clk
0:00:25.4]} 18... Kc7 {[%clk 0:01:20.1]} 19. Be2 {[%clk 0:00:17.9]} 19... d6
{[%clk 0:01:20.3]} 20. Rd2 {[%clk 0:00:17.5]} 20... Rad8 {[%clk 0:01:16.1]} 21.
Ne3 {[%clk 0:00:15.6]} 21... Rd7 {[%clk 0:00:48.9]} 22. Bxf6 {[%clk 0:00:11.9]}
22... gxf6 {[%clk 0:00:48]} 23. Rh6 {[%clk 0:00:11.4]} 23... Ng8 {[%clk
0:00:32.3]} 24. Rh5 {[%clk 0:00:11.9]} 24... Rd8 {[%clk 0:00:29]} 25. Bd1 {[%clk
0:00:11.8]} 25... Ne7 {[%clk 0:00:23.6]} 26. Ba4 {[%clk 0:00:11.9]} 26... Rdg8
{[%clk 0:00:23]} 27. Ng4 {[%clk 0:00:08.7]} 27... Bxe4 {[%clk 0:00:15.7]} 28.
Nxf6 {[%clk 0:00:07.7]} 28... Bg6 {[%clk 0:00:16.4]} 29. Nxg8 {[%clk 0:00:07.4]}
29... Bxh5 {[%clk 0:00:16]} 30. Nxe7 {[%clk 0:00:07.7]} 30... Bg6 {[%clk
0:00:15.6]} 31. Nd5+ {[%clk 0:00:08.1]} 31... Kc8 {[%clk 0:00:15.4]} 32. Bc2
{[%clk 0:00:08.3]} 32... Bxc2 {[%clk 0:00:13.8]} 33. Kxc2 {[%clk 0:00:09.2]}
33... Kd7 {[%clk 0:00:13.9]} 34. g4 {[%clk 0:00:09.2]} 34... h5 {[%clk 0:00:14]}
35. gxh5 {[%clk 0:00:08.7]} 35... Rxh5 {[%clk 0:00:14.9]} 36. Nf6+ {[%clk
0:00:09.1]} 36... Ke6 {[%clk 0:00:15.8]} 37. Nxh5 {[%clk 0:00:10]} 1-0

[Event "Late-Titled-Tuesday-Blitz-February-27-2024"]
[Site "Chess.com"]
[Date "2024.02.27"]
[Round "2"]
[White "HansOnTwitch"]
[Black "sotochess"]
[Result "1-0"]
[WhiteElo "3087"]
[BlackElo "2638"]
[TimeControl "180+1"]
[EndTime "14:17:19 PST"]
[Termination "HansOnTwitch won by resignation"]

1. e4 {[%clk 0:02:46.5]} 1... d5 {[%clk 0:02:56.7]} 2. exd5 {[%clk 0:02:43.9]}
2... Qxd5 {[%clk 0:02:57.6]} 3. Nc3 {[%clk 0:02:44.4]} 3... Qa5 {[%clk
0:02:57.2]} 4. d4 {[%clk 0:02:44.2]} 4... c6 {[%clk 0:02:56.1]} 5. Nf3 {[%clk
0:02:44.3]} 5... Bg4 {[%clk 0:02:55.3]} 6. h3 {[%clk 0:02:43.8]} 6... Bh5 {[%clk
0:02:55.1]} 7. g4 {[%clk 0:02:43.3]} 7... Bg6 {[%clk 0:02:54.8]} 8. Ne5 {[%clk
0:02:43.9]} 8... Nf6 {[%clk 0:02:51.4]} 9. h4 {[%clk 0:02:44]} 9... Nbd7 {[%clk
0:02:39.5]} 10. Nc4 {[%clk 0:02:36.8]} 10... Qc7 {[%clk 0:02:34.1]} 11. h5
{[%clk 0:02:35.8]} 11... Be4 {[%clk 0:02:33.7]} 12. Nxe4 {[%clk 0:02:35]} 12...
Nxe4 {[%clk 0:02:33.5]} 13. Bg2 {[%clk 0:02:35.7]} 13... Nd6 {[%clk 0:02:30.1]}
14. Bf4 {[%clk 0:02:35.4]} 14... O-O-O {[%clk 0:02:12]} 15. Qe2 {[%clk
0:02:25.5]} 15... Nb6 {[%clk 0:02:07]} 16. Nxb6+ {[%clk 0:02:01.7]} 16... Qxb6
{[%clk 0:02:03.1]} 17. O-O-O {[%clk 0:02:02.3]} 17... e6 {[%clk 0:01:45.7]} 18.
c4 {[%clk 0:02:02]} 18... Qa6 {[%clk 0:01:43.9]} 19. b3 {[%clk 0:02:02.4]} 19...
Ne8 {[%clk 0:01:35.2]} 20. Qc2 {[%clk 0:01:54]} 20... Bd6 {[%clk 0:01:30.9]} 21.
Be3 {[%clk 0:01:52.3]} 21... Nf6 {[%clk 0:01:24.3]} 22. Bf3 {[%clk 0:01:35.7]}
22... Kb8 {[%clk 0:01:08.4]} 23. g5 {[%clk 0:01:34.4]} 23... Nd7 {[%clk
0:01:07.1]} 24. Kb1 {[%clk 0:01:32.5]} 24... Qa5 {[%clk 0:00:59.4]} 25. h6
{[%clk 0:01:24.3]} 25... g6 {[%clk 0:00:58.1]} 26. Be2 {[%clk 0:01:23.9]} 26...
Rhe8 {[%clk 0:00:51]} 27. c5 {[%clk 0:01:22.4]} 27... Bf8 {[%clk 0:00:40.2]} 28.
f4 {[%clk 0:01:22.2]} 28... f6 {[%clk 0:00:34]} 29. Bg4 {[%clk 0:01:08.1]} 29...
Qc7 {[%clk 0:00:25.2]} 30. Rhe1 {[%clk 0:00:50.6]} 30... e5 {[%clk 0:00:20.7]}
31. dxe5 {[%clk 0:00:42.9]} 31... fxe5 {[%clk 0:00:19.9]} 32. f5 {[%clk
0:00:43.4]} 32... e4 {[%clk 0:00:14.6]} 33. f6 {[%clk 0:00:42.4]} 33... Ne5
{[%clk 0:00:14.4]} 34. Rxd8+ {[%clk 0:00:41.9]} 34... Rxd8 {[%clk 0:00:14.2]}
35. Qxe4 {[%clk 0:00:41]} 35... Nxg4 {[%clk 0:00:13.8]} 36. Qxg4 {[%clk
0:00:41]} 36... Ka8 {[%clk 0:00:13.2]} 37. Rd1 {[%clk 0:00:38.2]} 37... Re8
{[%clk 0:00:12.5]} 38. Qf4 {[%clk 0:00:35.5]} 38... Qxf4 {[%clk 0:00:11.7]} 39.
Bxf4 {[%clk 0:00:36.4]} 39... Bxc5 {[%clk 0:00:12.1]} 40. Rd7 {[%clk 0:00:36.1]}
40... Rh8 {[%clk 0:00:12]} 41. Be5 {[%clk 0:00:34]} 1-0

[Event "Late-Titled-Tuesday-Blitz-February-27-2024"]
[Site "Chess.com"]
[Date "2024.02.27"]
[Round "2"]
[White "krucki03"]
[Black "ameetghasi100"]
[Result "0-1"]
[WhiteElo "2528"]
[BlackElo "2752"]
[TimeControl "180+1"]
[EndTime "14:17:20 PST"]
[Termination "ameetghasi100 won on time"]

1. d4 {[%clk 0:03:00.9]} 1... d6 {[%clk 0:03:00.1]} 2. Nf3 {[%clk 0:02:47.6]}
2... g6 {[%clk 0:03:01]} 3. e4 {[%clk 0:02:41.6]} 3... Bg7 {[%clk 0:03:01.1]} 4.
Nc3 {[%clk 0:02:42.1]} 4... a6 {[%clk 0:03:01]} 5. Be3 {[%clk 0:02:42.4]} 5...
e6 {[%clk 0:03:01.3]} 6. Bd3 {[%clk 0:02:40.8]} 6... h6 {[%clk 0:03:01.4]} 7.
Qd2 {[%clk 0:02:40.1]} 7... Nd7 {[%clk 0:03:01.7]} 8. h4 {[%clk 0:02:34.3]} 8...
b5 {[%clk 0:03:01.6]} 9. a4 {[%clk 0:02:33.6]} 9... b4 {[%clk 0:03:01.6]} 10.
Ne2 {[%clk 0:02:34]} 10... c5 {[%clk 0:03:02]} 11. c3 {[%clk 0:02:34]} 11...
bxc3 {[%clk 0:03:01.7]} 12. bxc3 {[%clk 0:02:34.9]} 12... Ngf6 {[%clk 0:03:02]}
13. Rb1 {[%clk 0:02:16.3]} 13... Qc7 {[%clk 0:03:01.8]} 14. O-O {[%clk
0:02:00.2]} 14... Bb7 {[%clk 0:03:01.2]} 15. Ng3 {[%clk 0:01:59.8]} 15... Ng4
{[%clk 0:02:57.7]} 16. Bf4 {[%clk 0:01:55.4]} 16... e5 {[%clk 0:02:57.5]} 17.
Be3 {[%clk 0:01:54.3]} 17... h5 {[%clk 0:02:51.2]} 18. Bg5 {[%clk 0:01:51.3]}
18... O-O {[%clk 0:02:47.5]} 19. Rfc1 {[%clk 0:01:40.4]} 19... Bc6 {[%clk
0:02:44.5]} 20. Qa2 {[%clk 0:01:36.3]} 20... Ndf6 {[%clk 0:02:26.1]} 21. a5
{[%clk 0:01:13.6]} 21... Rfb8 {[%clk 0:02:23.6]} 22. Rxb8+ {[%clk 0:00:50.8]}
22... Rxb8 {[%clk 0:02:24.5]} 23. d5 {[%clk 0:00:48.8]} 23... Bb5 {[%clk
0:02:24]} 24. c4 {[%clk 0:00:46.5]} 24... Bd7 {[%clk 0:02:23.7]} 25. Rb1 {[%clk
0:00:43.1]} 25... Rxb1+ {[%clk 0:01:51.2]} 26. Qxb1 {[%clk 0:00:42.8]} 26...
Qxa5 {[%clk 0:01:51]} 27. Qb8+ {[%clk 0:00:37.9]} 27... Kh7 {[%clk 0:01:39.1]}
28. Qxd6 {[%clk 0:00:33.2]} 28... Qa1+ {[%clk 0:01:24]} 29. Bf1 {[%clk
0:00:32.6]} 29... a5 {[%clk 0:01:23.7]} 30. Bd2 {[%clk 0:00:27.3]} 30... a4
{[%clk 0:01:21.9]} 31. Ng5+ {[%clk 0:00:27.4]} 31... Kg8 {[%clk 0:01:19.5]} 32.
Qe7 {[%clk 0:00:17.4]} 32... Be8 {[%clk 0:01:19.4]} 33. Qxc5 {[%clk 0:00:07.2]}
33... a3 {[%clk 0:01:16.2]} 34. Qa5 {[%clk 0:00:04.2]} 34... a2 {[%clk
0:01:15.8]} 35. Bc3 {[%clk 0:00:04.7]} 35... Qb1 {[%clk 0:01:08.7]} 36. c5
{[%clk 0:00:05.3]} 36... Qc2 {[%clk 0:01:01.3]} 37. Nh3 {[%clk 0:00:05.5]} 37...
Bf8 {[%clk 0:00:48.4]} 38. c6 {[%clk 0:00:05]} 38... Bd6 {[%clk 0:00:48.7]} 39.
Ne2 {[%clk 0:00:03]} 39... Nxe4 {[%clk 0:00:44.5]} 40. f3 {[%clk 0:00:03.5]}
40... Nxc3 {[%clk 0:00:39.7]} 41. Nxc3 {[%clk 0:00:04]} 41... Bc5+ {[%clk
0:00:38.7]} 42. Kh1 {[%clk 0:00:02.2]} 42... Qc1 {[%clk 0:00:38.5]} 0-1

[Event "Late-Titled-Tuesday-Blitz-February-27-2024"]
[Site "Chess.com"]
[Date "2024.02.27"]
[Round "2"]
[White "Caisachess"]
[Black "Boorchess"]
[Result "1/2-1/2"]
[WhiteElo "2346"]
[BlackElo "2534"]
[TimeControl "180+1"]
[EndTime "14:17:20 PST"]
[Termination "Game drawn by repetition"]

1. e4 {[%clk 0:03:00.9]} 1... Nf6 {[%clk 0:02:59.4]} 2. Nc3 {[%clk 0:03:00.4]}
2... e5 {[%clk 0:02:58.5]} 3. f4 {[%clk 0:02:55.7]} 3... d5 {[%clk 0:02:58.4]}
4. fxe5 {[%clk 0:02:54.9]} 4... Nxe4 {[%clk 0:02:57.1]} 5. Qf3 {[%clk
0:02:55.5]} 5... Nxc3 {[%clk 0:02:56.2]} 6. bxc3 {[%clk 0:02:52.7]} 6... Be6
{[%clk 0:02:55.3]} 7. d4 {[%clk 0:02:51.1]} 7... c5 {[%clk 0:02:54]} 8. Bd3
{[%clk 0:02:51.3]} 8... Nc6 {[%clk 0:02:50.2]} 9. Bd2 {[%clk 0:02:51]} 9... cxd4
{[%clk 0:02:41]} 10. Qg3 {[%clk 0:02:43.1]} 10... dxc3 {[%clk 0:02:32.5]} 11.
Bxc3 {[%clk 0:02:41.5]} 11... Bb4 {[%clk 0:02:12.6]} 12. Bxb4 {[%clk 0:02:36]}
12... Nxb4 {[%clk 0:02:12.3]} 13. Qxg7 {[%clk 0:02:35.9]} 13... Nxd3+ {[%clk
0:02:08.8]} 14. cxd3 {[%clk 0:02:35.3]} 14... Qh4+ {[%clk 0:02:03.2]} 15. Ke2
{[%clk 0:02:17.6]} 15... O-O-O {[%clk 0:01:18.1]} 16. Nf3 {[%clk 0:02:14.5]}
16... Qa4 {[%clk 0:01:16.8]} 17. Rhc1+ {[%clk 0:02:11.3]} 17... Kb8 {[%clk
0:01:16.8]} 18. Qh6 {[%clk 0:01:54.7]} 18... Rhg8 {[%clk 0:01:12.9]} 19. Kf2
{[%clk 0:01:53.2]} 19... Bg4 {[%clk 0:01:06.2]} 20. Qe3 {[%clk 0:01:44.7]} 20...
Bxf3 {[%clk 0:01:05.4]} 21. Qxf3 {[%clk 0:01:44.6]} 21... Qd4+ {[%clk
0:01:03.9]} 22. Kf1 {[%clk 0:01:44.6]} 22... Qxe5 {[%clk 0:01:00.7]} 23. Kg1
{[%clk 0:01:44.4]} 23... Rd7 {[%clk 0:00:47.1]} 24. Rab1 {[%clk 0:01:36.2]}
24... Qd4+ {[%clk 0:00:43.7]} 25. Kh1 {[%clk 0:01:35.8]} 25... Qg4 {[%clk
0:00:42.1]} 26. Qf2 {[%clk 0:01:31.9]} 26... b6 {[%clk 0:00:36]} 27. h3 {[%clk
0:01:23.9]} 27... Qg3 {[%clk 0:00:33.4]} 28. Qf1 {[%clk 0:01:04.9]} 28... Re7
{[%clk 0:00:27.1]} 29. Rb2 {[%clk 0:01:04.5]} 29... Rge8 {[%clk 0:00:25.2]} 30.
Rf2 {[%clk 0:01:01.8]} 30... Qg7 {[%clk 0:00:16.7]} 31. Rf5 {[%clk 0:00:52.9]}
31... Rd8 {[%clk 0:00:13.5]} 32. Qf4+ {[%clk 0:00:51.3]} 32... Ka8 {[%clk
0:00:13.5]} 33. Rf1 {[%clk 0:00:43.1]} 33... Qb2 {[%clk 0:00:12.3]} 34. Rxf7
{[%clk 0:00:41.9]} 34... Rxf7 {[%clk 0:00:11.7]} 35. Qxf7 {[%clk 0:00:42.1]}
35... Qxa2 {[%clk 0:00:11.9]} 36. Qc7 {[%clk 0:00:41.6]} 36... Rg8 {[%clk
0:00:09.8]} 37. Qc6+ {[%clk 0:00:41.6]} 37... Kb8 {[%clk 0:00:09.7]} 38. Qd6+
{[%clk 0:00:40.3]} 38... Ka8 {[%clk 0:00:09.4]} 39. Qc6+ {[%clk 0:00:36.7]}
39... Kb8 {[%clk 0:00:09.6]} 40. Qd6+ {[%clk 0:00:30.4]} 40... Ka8 {[%clk
0:00:08.7]} 41. Qc6+ {[%clk 0:00:30.4]} 1/2-1/2

[Event "Late-Titled-Tuesday-Blitz-February-27-2024"]
[Site "Chess.com"]
[Date "2024.02.27"]
[Round "2"]
[White "egnfanclub"]
[Black "Mikhail_Bryakin"]
[Result "1-0"]
[WhiteElo "2407"]
[BlackElo "2725"]
[TimeControl "180+1"]
[EndTime "14:17:22 PST"]
[Termination "egnfanclub won by resignation"]

1. e4 {[%clk 0:03:00.9]} 1... e6 {[%clk 0:02:55.9]} 2. d4 {[%clk 0:03:00.3]}
2... d5 {[%clk 0:02:56.3]} 3. Nc3 {[%clk 0:02:59.9]} 3... Be7 {[%clk 0:02:51.4]}
4. Nf3 {[%clk 0:02:57.9]} 4... dxe4 {[%clk 0:02:49]} 5. Nxe4 {[%clk 0:02:58.8]}
5... Nf6 {[%clk 0:02:49.1]} 6. Bd3 {[%clk 0:02:55]} 6... Nbd7 {[%clk 0:02:46.2]}
7. Qe2 {[%clk 0:02:51.4]} 7... Nxe4 {[%clk 0:02:45.8]} 8. Bxe4 {[%clk
0:02:51.2]} 8... Nf6 {[%clk 0:02:46.3]} 9. Bxb7 {[%clk 0:02:40.5]} 9... Bxb7
{[%clk 0:02:34.9]} 10. Qb5+ {[%clk 0:02:39.8]} 10... Qd7 {[%clk 0:02:35.6]} 11.
Qxb7 {[%clk 0:02:39.5]} 11... O-O {[%clk 0:02:36.3]} 12. c3 {[%clk 0:02:31.8]}
12... Rfb8 {[%clk 0:02:29.1]} 13. Qa6 {[%clk 0:02:30.7]} 13... c5 {[%clk
0:02:29.3]} 14. O-O {[%clk 0:02:22.1]} 14... Rb6 {[%clk 0:02:29.2]} 15. Qe2
{[%clk 0:02:17.7]} 15... Qd5 {[%clk 0:02:22.7]} 16. Qe5 {[%clk 0:02:00.7]} 16...
cxd4 {[%clk 0:02:18.2]} 17. Qxd5 {[%clk 0:02:00]} 17... Nxd5 {[%clk 0:02:16.8]}
18. Nxd4 {[%clk 0:02:00.7]} 18... Bf6 {[%clk 0:02:15.9]} 19. Rd1 {[%clk
0:01:53.4]} 19... Rc8 {[%clk 0:02:12.3]} 20. Nf3 {[%clk 0:01:48.8]} 20... h6
{[%clk 0:02:08.1]} 21. Kf1 {[%clk 0:01:48.4]} 21... Rb7 {[%clk 0:02:04.8]} 22.
Ke2 {[%clk 0:01:45.5]} 22... Bxc3 {[%clk 0:02:03.3]} 23. bxc3 {[%clk 0:01:43.8]}
23... Nxc3+ {[%clk 0:02:02.9]} 24. Ke1 {[%clk 0:01:41.9]} 24... Nxd1 {[%clk
0:02:02.9]} 25. Kxd1 {[%clk 0:01:42.8]} 25... f6 {[%clk 0:02:01]} 26. Be3 {[%clk
0:01:41.9]} 26... e5 {[%clk 0:02:01.6]} 27. Nd2 {[%clk 0:01:39.2]} 27... Kf7
{[%clk 0:02:01.5]} 28. Rc1 {[%clk 0:01:31.8]} 28... Rxc1+ {[%clk 0:02:00]} 29.
Kxc1 {[%clk 0:01:32.7]} 29... f5 {[%clk 0:01:59.5]} 30. g3 {[%clk 0:01:32.6]}
30... Ke6 {[%clk 0:01:59.8]} 31. Kc2 {[%clk 0:01:30.4]} 31... Kd5 {[%clk
0:01:59.8]} 32. Nb3 {[%clk 0:01:24.9]} 32... Rc7+ {[%clk 0:01:58.9]} 33. Kd3
{[%clk 0:01:23.2]} 33... g5 {[%clk 0:01:59]} 34. f3 {[%clk 0:01:17.8]} 34... e4+
{[%clk 0:01:55.5]} 35. fxe4+ {[%clk 0:01:13.9]} 35... fxe4+ {[%clk 0:01:56.4]}
36. Kd2 {[%clk 0:01:13.5]} 36... Rc6 {[%clk 0:01:54.9]} 37. a4 {[%clk
0:01:06.3]} 37... Rc4 {[%clk 0:01:53.4]} 38. a5 {[%clk 0:01:05.4]} 38... a6
{[%clk 0:01:53.8]} 39. Bb6 {[%clk 0:00:54]} 39... Ra4 {[%clk 0:01:53.1]} 40. Nc5
{[%clk 0:00:46.6]} 40... Ra2+ {[%clk 0:01:52.9]} 41. Ke3 {[%clk 0:00:46.8]}
41... Ra3+ {[%clk 0:01:53]} 42. Kd2 {[%clk 0:00:46]} 42... Ra2+ {[%clk
0:01:53.4]} 43. Ke3 {[%clk 0:00:43.6]} 43... Rxh2 {[%clk 0:01:46.1]} 44. Nxe4
{[%clk 0:00:42.6]} 44... Kc6 {[%clk 0:01:31.8]} 45. Kf3 {[%clk 0:00:40.2]} 45...
Rb2 {[%clk 0:01:23]} 46. Nc5 {[%clk 0:00:29.5]} 46... Kb5 {[%clk 0:01:22.5]} 47.
Ne6 {[%clk 0:00:25.7]} 47... Rb4 {[%clk 0:01:20.3]} 48. Nd4+ {[%clk 0:00:22.7]}
48... Ka4 {[%clk 0:01:20.2]} 49. Kg4 {[%clk 0:00:21.6]} 49... Rb1 {[%clk
0:01:17.5]} 50. Kh5 {[%clk 0:00:21.2]} 50... Rh1+ {[%clk 0:01:18.1]} 51. Kg6
{[%clk 0:00:21.3]} 51... Rh3 {[%clk 0:01:13.7]} 52. Nf5 {[%clk 0:00:21.3]} 52...
g4 {[%clk 0:01:13.1]} 53. Bc7 {[%clk 0:00:20.3]} 53... h5 {[%clk 0:01:12.6]} 54.
Kg5 {[%clk 0:00:20.3]} 54... Rh1 {[%clk 0:01:11.7]} 55. Ng7 {[%clk 0:00:20]}
55... h4 {[%clk 0:01:10.8]} 56. gxh4 {[%clk 0:00:20.2]} 56... Rg1 {[%clk
0:01:08.3]} 57. Nf5 {[%clk 0:00:19]} 57... Rc1 {[%clk 0:01:07.4]} 58. Bb6 {[%clk
0:00:17.6]} 58... Rg1 {[%clk 0:01:04.2]} 59. h5 {[%clk 0:00:17.5]} 59... g3
{[%clk 0:01:04]} 60. Bxg1 {[%clk 0:00:17.2]} 1-0